Cogmind - Beta 15 @@@ ROGUE MODE // 2025.05.07 @ 00:25:10 Player: Rotpup_ Result: Self-destructed Performance ------------- Evolutions (3) 1500 Regions Visited (6) 1200 Robots Destroyed (53) 265 Value Destroyed (1452) 1452 Prototype IDs (2) 40 Alien Tech Used (0) 0 Bonus (0) 0 TOTAL SCORE: 4457 Bonus ------- None Cogmind --------- Core Integrity 379/700 Matter 30/300 Energy 100/100 System Corruption 0% Temperature Cool (0) Movement Core (200) Ox3 Location -7/Factory Parts ------- > --- POWER (1) -------- (None) > --- PROPULSION (3) --- (None) > --- UTILITY (5) ------ Medium Storage Unit Hacking Suite Hacking Suite > --- WEAPON (4) ------- (None) > --- INVENTORY (10) --- Light Nuclear Core Flight Unit Flight Unit Improved VTOL Module Improved Terrain Scan Processor Melee Analysis Suite Decoy Drone Bay Grenade Launcher Peak State ------------ > --- POWER ------------ Light Nuclear Core > --- PROPULSION ------- Flight Unit Flight Unit VTOL Module > --- UTILITY ---------- Large Storage Unit Targeting Computer Hacking Suite Hacking Suite Hacking Suite > --- WEAPON ----------- Light Assault Rifle Improved Assault Rifle Enhanced Autogun Grenade Launcher > --- INVENTORY -------- Light Nuclear Core Wheel Compact Wheel Flight Unit Flight Unit Medium Storage Unit Improved Terrain Scan Processor Hardened Light Armor Plating Improved Light Armor Plating Decoy Drone Bay Blade Saw [Rating: 30] Favorites ----------- Power Light Angular Momentum Engine Engine Light Angular Momentum Engine Power Core Light Nuclear Core Propulsion Light Treads Treads Light Treads Wheel Compact Wheel Flight Unit Flight Unit Utility Hacking Suite Device Improved Heat Sink Storage Large Storage Unit Processor Targeting Computer Hackware Hacking Suite Protection Improved Light Armor Plating Weapon Assault Rifle Energy Gun Medium Laser Ballistic Gun Assault Rifle Launcher Grenade Launcher Slashing Weapon Blade Saw Build | -11 -10 -10 -10 -9 -8 -7 ------- Run | Yrd Mat Min Exi Min Mat Fac Slots Evolved 6 | . . . . . 4 2 Power . | . . . . . . . Propulsion 1 | . . . . . . 1 Utility 3 | . . . . . 2 1 Weapon 2 | . . . . . 2 . Parts Attached 36 | 7 2 1 . 1 19 6 Power 5 | 1 . . . 1 3 . Engine 2 | 1 . . . . 1 . Core 3 | . . . . 1 2 . Reactor . | . . . . . . . Propulsion 9 | 2 . . . . 4 3 Treads 4 | 2 . . . . 2 . Leg . | . . . . . . . Wheel 2 | . . . . . 2 . Hover . | . . . . . . . Flight 3 | . . . . . . 3 Utility 14 | 2 2 . . . 8 2 Device 1 | . 1 . . . . . Storage 4 | 2 1 . . . . 1 Processor 1 | . . . . . 1 . Hackware 4 | . . . . . 3 1 Protection 4 | . . . . . 4 . Artifact . | . . . . . . . Weapon 8 | 2 . 1 . . 4 1 Energy Gun 1 | . . . . . 1 . Energy Cannon . | . . . . . . . Ballistic Gun 5 | 2 . . . . 3 . Ballistic Cannon . | . . . . . . . Launcher 1 | . . 1 . . . . Special Weapon . | . . . . . . . Impact Weapon . | . . . . . . . Slashing Weapon 1 | . . . . . . 1 Piercing Weapon . | . . . . . . . Special Melee Weapon . | . . . . . . . Unidentified Prototypes 2 | . . . . . 2 . Parts Lost 15 | . . . . . 6 9 Power 1 | . . . . . . 1 Propulsion 5 | . . . . . 2 3 Utility 4 | . . . . . 2 2 Weapon 5 | . . . . . 2 3 Highest Loss Streak 9 | . . . . . 2 9 To Critical Strikes . | . . . . . . . Average Backups 9 | 3 5 8 8 9 11 8 Power 1 | . 1 1 1 1 1 1 Propulsion 2 | 1 2 2 2 2 3 2 Utility 3 | . . 2 2 2 5 2 Weapon 1 | . 2 3 3 3 1 2 Tool/Special . | . . . . . . . Unused Backups 15 | . . . . 2 5 8 Power 4 | . . . . . 3 1 Propulsion 6 | . . . . 2 1 3 Utility 5 | . . . . . 1 4 Weapon . | . . . . . . . Tool/Special . | . . . . . . . Average Slot Usage (%) 97 | . 100 100 100 100 97 76 Engine 8 | . 14 14 14 12 6 . Core 2 | . . . . 1 2 6 Treads 19 | . 28 28 28 28 15 . Wheel 1 | . . . . . 2 . Device 5 | . 10 14 14 14 1 . Storage 11 | . 17 14 14 14 9 7 Processor 1 | . . . . . 1 5 Hackware 9 | . . . . . 13 22 Protection 4 | . . . . . 8 . Energy Gun 1 | . . . . . 1 . Ballistic Gun 26 | . 28 16 14 14 32 14 Launcher 4 | . . 11 14 14 1 . Peak Build Rating 30 | 7 9 9 9 13 29 30 Average Rating 18 | 5 8 9 9 11 25 25 On Entrance 10 | . 7 9 9 9 13 25 Naked Turns . | . . . . . . . Heaviest Build 45 | 18 29 31 31 31 45 21 Greatest Support 40 | 40 40 40 40 40 40 12 Greatest Overweight (x) 2 | . . . . . 2 2 Average Overweight (x) . | . . . . . . 1 Largest Inventory Capacity 15 | 8 15 15 15 15 15 15 Average Capacity 14 | 7 11 15 15 15 15 10 Most Carried 15 | 6 8 8 8 12 15 14 Average Carried 10 | 3 5 8 8 9 13 9 Final Capacity 15 | 8 15 15 15 15 15 10 Final Carried 14 | 4 8 8 8 10 14 9 Class Distribution -------------------- 40% | Mutant 33% | Hacker-Tank 11% | Tank 6% | Gunner 4% | Hacker-Gunner 4% | Hacker-Mutant Dominant Class ---------------- Mutant | -10/Materials Mutant | -10/Mines Mutant | -10/Exiles Mutant | -9/Mines Hacker-Tank | -8/Materials Hacker-Mutant | -7/Factory Resources | -11 -10 -10 -10 -9 -8 -7 ----------- Run | Yrd Mat Min Exi Min Mat Fac Matter Collected 1458 | 206 148 22 . 54 1028 . Remotely . | . . . . . . . Salvage Created 1886 | 102 46 28 . 151 1559 . Parts 102 | 2 4 6 . 7 83 . Haulers Intercepted 2 | . . . . . 2 . Recyclers Shooed 1 | . 1 . . . . . Parts Field Recycled . | . . . . . . . Retrieved Matter . | . . . . . . . Parts Self-Destructed . | . . . . . . . Prevented . | . . . . . . . Kills | -11 -10 -10 -10 -9 -8 -7 ------- Run | Yrd Mat Min Exi Min Mat Fac Combat Hostiles Destroyed 35 | . 1 3 . 4 27 . Guns 20 | . 1 . . . 19 . AOE 15 | . . 3 . 4 8 . Classes Destroyed 12 | 2 2 1 . 1 6 . Worker 2 | . . . . . 2 . Builder 1 | . . . . . 1 . Tunneler 1 | 1 . . . . . . Hauler 2 | . . . . . 2 . Recycler 5 | 1 . . . . 4 . Operator 5 | . 1 . . . 4 . Watcher 2 | . . . . . 2 . Swarmer 10 | . . 3 . . 7 . Grunt 17 | . 1 . . 3 13 . Brawler 1 | . . . . 1 . . Sentry 3 | . . . . . 3 . Hunter 4 | . . . . . 4 . Best Kill Streak 9 | 1 1 3 . 4 9 . Combat Bots Only 9 | . 1 3 . 4 9 . Max Kills in Single Turn 3 | 1 1 3 . 2 2 . Gunslinging 1 | . . . . . 1 . Exploded 3 | . . 3 . 2 2 . Melee . | . . . . . . . Uniques/NPCs Destroyed . | . . . . . . . Combat | -11 -10 -10 -10 -9 -8 -7 -------- Run | Yrd Mat Min Exi Min Mat Fac Hostile Shots Fired 230 | . 8 22 . 1 131 68 Missed 54 | . 3 6 . 1 34 10 Hits 176 | . 5 16 . . 97 58 Projectile 176 | . 5 16 . . 97 58 Critical Strikes 8 | . . . . . 6 2 Damage Taken 2442 | . 54 127 . . 1401 860 Core 562 | . 10 24 . . 207 321 Absorbed by Shields . | . . . . . . . Regen/Repaired (Parts) 147 | . . . . . 147 . Core Remaining (%) 82 | 100 . . . 86 62 . Volleys Fired 126 | 8 8 5 . 3 98 4 Largest 4 | 2 2 2 . 1 4 2 Hottest 115 | 40 40 40 . 30 115 48 Shots Fired 407 | 16 16 9 . 3 357 6 Gun 391 | 16 16 8 . . 345 6 Cannon . | . . . . . . . Launcher 16 | . . 1 . 3 12 . Special . | . . . . . . . Kinetic 364 | 16 16 8 . . 318 6 Thermal 27 | . . . . . 27 . Explosive 16 | . . 1 . 3 12 . Electromagnetic . | . . . . . . . Robot Hit Streak 13 | 5 4 1 . 1 13 8 Robot Miss Streak 5 | 1 3 4 . . 5 1 Penetration Max . | . . . . . . . Secondary Targets 2 | . . . . . 2 . Max Gunslinging Chain 1 | . . . . . 1 . Shots Hit Robots 243 | 11 8 1 . 1 215 7 Core Hits 109 | 3 3 3 . 6 92 2 Critical Kills 1 | . . . . . 1 . Critical Parts Destroyed 3 | . . . . . 3 . Critical Strikes 5 | . . . . . 5 . Burn 1 | . . . . . 1 . Destroy 4 | . . . . . 4 . Melee Attacks 3 | . . . . . . 3 Impact . | . . . . . . . Slashing 3 | . . . . . . 3 Piercing . | . . . . . . . Sneak Attacks . | . . . . . . . Combat Hostiles . | . . . . . . . Follow-up Attacks . | . . . . . . . Damage Inflicted 4005 | 115 86 123 . 176 3387 118 Guns 2858 | 115 86 14 . . 2560 83 Cannons . | . . . . . . . Explosions 1112 | . . 109 . 176 827 . Melee 35 | . . . . . . 35 Ramming . | . . . . . . . Kinetic 2631 | 115 86 14 . . 2333 83 Thermal 227 | . . . . . 227 . Explosive 1112 | . . 109 . 176 827 . Electromagnetic . | . . . . . . . Impact . | . . . . . . . Slashing 35 | . . . . . . 35 Piercing . | . . . . . . . Highest Corruption 1 | . . . . . 1 . Average Corruption 1 | . . . . . 1 . Corruption Purged . | . . . . . . . Corruption Blocked . | . . . . . . . Effects 7 | . . . . . 7 . Message Errors 1 | . . . . . 1 . Matter Fused 4 | . . . . . 4 . Heat Flow Errors 1 | . . . . . 1 . Alerts 1 | . . . . . 1 . Overload Shots . | . . . . . . . Overflow Damage . | . . . . . . . Projectiles . | . . . . . . . Explosions . | . . . . . . . Melee . | . . . . . . . Knockbacks . | . . . . . . . Impact . | . . . . . . . Kinetic . | . . . . . . . Secondary . | . . . . . . . Self-Inflicted Damage 1 | . . . . 1 . . Shots 1 | . . . . 1 . . Rammed . | . . . . . . . Targets Rammed . | . . . . . . . Kicked . | . . . . . . . Crushed . | . . . . . . . Highest Temperature 353 | . . . . . 353 . Average Temperature 80 | . . . . . 80 . Received Heat Transfer 705 | . 30 . . . 594 81 Siege Activations . | . . . . . . . Martial Activations . | . . . . . . . Shielding Activations . | . . . . . . . Robots Disrupted . | . . . . . . . Combat Hostiles . | . . . . . . . Robots Corrupted . | . . . . . . . Combat Hostiles . | . . . . . . . Parts Fried . | . . . . . . . Impact Corruptions . | . . . . . . . Robots Melted . | . . . . . . . Combat Hostiles . | . . . . . . . Parts Melted 4 | . . . . . 4 . Heat Transferred 740 | . . . . . 740 . Parts Sabotaged . | . . . . . . . Parts Stolen . | . . . . . . . Parts Stripped . | . . . . . . . Power Chain Reactions . | . . . . . . . Alert | -11 -10 -10 -10 -9 -8 -7 ------- Run | Yrd Mat Min Exi Min Mat Fac Maximum Alert Level 1 | . . . . . 1 . Low Security (%) 64 | 100 100 100 . 100 48 100 Level 1 35 | . . . . . 51 . Level 2 . | . . . . . . . Level 3 . | . . . . . . . Level 4 . | . . . . . . . Level 5 . | . . . . . . . High Security . | . . . . . . . Max Security . | . . . . . . . Peak Influence 299 | 5 20 78 . 131 299 121 Initial 121 | . . . . . 42 121 Average 133 | . 2 47 . 22 186 80 Influence Increases 1165 | 10 34 78 . 131 897 15 Destroy 0b10 Robot/C 700 | . 20 60 . 80 540 . Destroy 0b10 Robot/NC 90 | 10 5 . . . 75 . Destroy Leader 168 | . . 10 . 20 138 . Successful Hack 19 | . 9 . . . 10 . Disable Machine 30 | . . . . 15 15 . Destroy Structure 53 | . . 8 . 16 29 . Partial Spotted 15 | . . . . . 15 . Lose Combat Pursuer 90 | . . . . . 75 15 Influence Decreases 1165 | 10 34 40 38 20 739 284 Entered New Map 255 | . . . 38 . 69 148 Time Decay 784 | 10 34 40 . 20 610 70 Lost Part 126 | . . . . . 60 66 Squads Dispatched 9 | . 1 . . . 6 2 Investigation 2 | . . . . . . 2 Extermination . | . . . . . . . Reinforcement 7 | . 1 . . . 6 . Assault . | . . . . . . . Garrison . | . . . . . . . Intercept . | . . . . . . . Searches Triggered . | . . . . . . . Construction Impeded 2 | . . . . . 2 . Haulers Reinforced . | . . . . . . . Active Scanning Responses . | . . . . . . . Cargo Convoy Interrupts . | . . . . . . . Stealth | -11 -10 -10 -10 -9 -8 -7 --------- Run | Yrd Mat Min Exi Min Mat Fac Distress Signals 6 | . . . . . 6 . Communications Jammed . | . . . . . . . Distress Signals . | . . . . . . . Times Spotted 68 | . 3 3 . 3 51 8 Peak Tracking Total 7 | . 2 3 . 2 5 7 Tactical Retreats 6 | . . . . . 5 1 Traps | -11 -10 -10 -10 -9 -8 -7 ------- Run | Yrd Mat Min Exi Min Mat Fac Traps Triggered 1 | . . . . . 1 . Indirectly . | . . . . . . . Trap Hack Attempts . | . . . . . . . Triggered . | . . . . . . . Disarmed . | . . . . . . . Reprogrammed . | . . . . . . . Reused . | . . . . . . . Traps Extracted . | . . . . . . . Installed . | . . . . . . . Triggered . | . . . . . . . Machines | -11 -10 -10 -10 -9 -8 -7 ---------- Run | Yrd Mat Min Exi Min Mat Fac Machines Disabled 2 | . . . . 1 1 . Max in Single Turn 1 | . . . . 1 1 . Garrison Access 1 | . . . . . 1 . Machines Repaired . | . . . . . . . Machines Dismantled . | . . . . . . . Machines Sabotaged . | . . . . . . . Overloaded Fab Kills . | . . . . . . . Hacking | -11 -10 -10 -10 -9 -8 -7 --------- Run | Yrd Mat Min Exi Min Mat Fac Machines Accessed 15 | . 4 . 4 1 4 2 Terminals 7 | . 3 . . . 2 2 Fabricators . | . . . . . . . Repair Stations 1 | . . . . . 1 . Recycling Units 1 | . 1 . . . . . Scanalyzers . | . . . . . . . Garrison Access 1 | . . . . . 1 . Total Hacks 29 | . 8 . 4 1 9 7 Successful 18 | . 5 . 4 1 6 2 Failed 11 | . 3 . . . 3 5 Catastrophic . | . . . . . . . Database Lockouts . | . . . . . . . Manual 17 | . 5 . . . 5 7 Terminals 17 | . 5 . . . 5 7 Fabricators . | . . . . . . . Repair Stations 2 | . . . . . 2 . Recycling Units 3 | . 3 . . . . . Scanalyzers . | . . . . . . . Garrison Access 2 | . . . . . 2 . Terminal Hacks 6 | . . . 4 1 1 . Record 4 | . . . 4 . . . Open Door 1 | . . . . 1 . . Zone Layout 1 | . . . . . 1 . Fabricator Hacks . | . . . . . . . Repair Station Hacks 2 | . . . . . 2 . Scan Component 1 | . . . . . 1 . Repair 1 | . . . . . 1 . Recycling Unit Hacks 2 | . 2 . . . . . Report Inventory 1 | . 1 . . . . . Retrieve Matter 1 | . 1 . . . . . Scanalyzer . | . . . . . . . Garrison Access Hacks 1 | . . . . . 1 . Seal Access 1 | . . . . . 1 . Unauthorized Hacks 7 | . 3 . . . 2 2 Terminals 7 | . 3 . . . 2 2 Botnet 7 | . 3 . . . 2 2 Fabricators . | . . . . . . . Repair Stations . | . . . . . . . Recycling Units . | . . . . . . . Scanalyzers . | . . . . . . . Garrison Access . | . . . . . . . Data Cores Recovered . | . . . . . . . Used . | . . . . . . . Hacking Detections 8 | . 4 . . . 2 2 Full Trace Events 3 | . . . . . 1 2 Feedback Events 1 | . . . . . 1 . Corruption 1 | . . . . . 1 . Feedback Blocked . | . . . . . . . Robot Schematics Acquired . | . . . . . . . Robots Built . | . . . . . . . Authchips . | . . . . . . . Time . | . . . . . . . Total Robot Build Rating . | . . . . . . . Part Schematics Acquired . | . . . . . . . Parts Built . | . . . . . . . Authchips . | . . . . . . . Time . | . . . . . . . Total Part Build Rating . | . . . . . . . Parts Repaired 1 | . . . . . 1 . Time 60 | . . . . . 60 . Parts Recycled . | . . . . . . . Recycled Matter . | . . . . . . . Retrieved Matter . | . . . . . . . Retrieved Components . | . . . . . . . Parts Scanalyzed . | . . . . . . . Part Schematics Acquired . | . . . . . . . Parts Damaged . | . . . . . . . Bothacking | -11 -10 -10 -10 -9 -8 -7 ------------ Run | Yrd Mat Min Exi Min Mat Fac Used RIF Installer . | . . . . . . . Robots Hacked . | . . . . . . . Non-combat . | . . . . . . . Combat . | . . . . . . . Robot Hacks Applied . | . . . . . . . Relay Couplers Released . | . . . . . . . Fabnet Peak Effective % . | . . . . . . . Robots Rewired . | . . . . . . . Allies Hacked . | . . . . . . . Hacks Repelled . | . . . . . . . Allies | -11 -10 -10 -10 -9 -8 -7 -------- Run | Yrd Mat Min Exi Min Mat Fac Total Allies . | . . . . . . . Largest Group . | . . . . . . . Highest-Rated Group . | . . . . . . . Highest-Rated Ally . | . . . . . . . Total Orders . | . . . . . . . Ally Attacks . | . . . . . . . Total Damage . | . . . . . . . Kills . | . . . . . . . Allies Corrupted . | . . . . . . . Allies Melted . | . . . . . . . Intel | -11 -10 -10 -10 -9 -8 -7 ------- Run | Yrd Mat Min Exi Min Mat Fac Active Infowar (turns) . | . . . . . . . Robot Analysis Total . | . . . . . . . Derelict Logs Recovered . | . . . . . . . Drone Launches . | . . . . . . . Drone Recoveries . | . . . . . . . Exploration | -11 -10 -10 -10 -9 -8 -7 ------------- Run | Yrd Mat Min Exi Min Mat Fac Turns Passed 3555 | 150 354 95 634 183 1983 156 Spaces Moved 1618 | 74 184 50 397 102 715 96 Core 7 | 7 . . . . . . Treads 1404 | 67 184 50 397 102 604 . Legs . | . . . . . . . Wheels 111 | . . . . . 111 . Hover . | . . . . . . . Flight 96 | . . . . . . 96 Fastest Speed 50 | 50 160 160 160 160 105 112 Average Speed 175 | 149 160 160 160 160 201 117 Slowest Speed 320 | 160 160 160 160 160 320 197 Overloaded Moves . | . . . . . . . Propulsion Burnouts . | . . . . . . . Robots Hopped . | . . . . . . . Potential Cave-ins . | . . . . . . . Cave-ins Triggered . | . . . . . . . Exploration Rate (%) 33 | 4 46 10 89 28 54 2 Regions Visited 6 Branch Regions 3 Pre-discovered Areas 1 | . . 1 . . . . Known Exits Taken . | . . . . . . . Unknown Exits Taken 6 | 1 1 1 1 1 1 . Scrap Searched . | . . . . . . . Spaces Dug . | . . . . . . . Terrain Destroyed 61 | . . 8 . 24 29 . Melee . | . . . . . . . Projectile . | . . . . . . . AOE 61 | . . 8 . 24 29 . Terrain Rammed . | . . . . . . . Walls Destroyed . | . . . . . . . Machines Disabled . | . . . . . . . Actions | -11 -10 -10 -10 -9 -8 -7 --------- Run | Yrd Mat Min Exi Min Mat Fac Total 2114 | 99 229 56 396 120 1083 131 Wait 246 | . 28 1 . 8 197 12 Move 1612 | 73 183 49 396 101 714 96 Hop . | . . . . . . . Pick Up 49 | 11 6 . . 4 26 2 Fast Attach 1 | . . . . . 1 . Attach 22 | 7 . . . . 12 3 Detach 4 | . . . . . 2 2 Swap 26 | . 2 1 . 1 19 3 Drop 25 | . 2 . . 3 14 6 Fire 126 | 8 8 5 . 3 98 4 Melee 3 | . . . . . . 3 Ram . | . . . . . . . Kick . | . . . . . . . Crush . | . . . . . . . Escape Stasis . | . . . . . . . Rewire . | . . . . . . . Trap . | . . . . . . . Miscellaneous . | . . . . . . . Route ------- -11/Scrapyard -10/Materials (discovered 2 exits: [*Min x2]) -10/Mines -10/Exiles -9/Mines -8/Materials (discovered 2 exits: *Fac x2) -7/Factory History --------- Turn | Location | Event 5 | -11/Scrapyard | Discovered new exit (range 16) 151 | -11/Scrapyard | Entered Materials 152 | -10/Materials | Met a group of wandering Federalists 249 | -10/Materials | Lost 3 allies 318 | -10/Materials | Build established: Mutant 374 | -10/Materials | Discovered new exit (range 9) 477 | -10/Materials | Discovered new exit (range 12) 505 | -10/Materials | Entered Mines 566 | -10/Mines | Learned location of Storage (-8) 592 | -10/Mines | Deemed a non-threat by the Exiles lab entrance 593 | -10/Mines | Discovered new exit (range 5) 600 | -10/Mines | Entered Exiles 600 | -10/Exiles | Found Exiles lab abandoned 1220 | -10/Exiles | Discovered new exit (range 10) 1234 | -10/Exiles | Entered Mines 1243 | -9/Mines | Found the Drone Emporium 1250 | -9/Mines | Found Prototype Device 1385 | -9/Mines | Discovered new exit (range 13) 1417 | -9/Mines | Entered Materials 1417 | -8/Materials | Evolved 4 slots: Utility x2, Weapon x2 2006 | -8/Materials | Destroyed 9 combat bots 2350 | -8/Materials | Build established: Hacker-Tank 2838 | -8/Materials | Discovered new exit (range 3) 3297 | -8/Materials | Discovered new exit (range 16) 3380 | -8/Materials | Repaired Enh. Autogun 3400 | -8/Materials | Entered Factory 3400 | -7/Factory | Evolved 2 slots: Propulsion x1, Utility x1 3556 | -7/Factory | Self-destructed Last Messages --------------- >>Trojan(Botnet) Trojan loaded successfully. Testing... Terminal linked with 1 system. Awaiting botnet instructions. 03504_ ALERT: Suspicious activity at Terminal F003. Dispatching Investigation squad. 03506_ U-05 Engineer works on Pressure Siphon. 03515_ Targeting Computer destroyed. 03517_ U-05 Engineer works on Pressure Siphon. 03519_ VTOL Module destroyed. 03522_ U-05 Engineer works on Pressure Siphon. 03530_ Imp. Assault Rifle destroyed. 03533_ Lgt. Nuclear Core destroyed. 03535_ Flight Unit destroyed. 03541_ Enh. Autogun destroyed. 03549_ Blade Saw destroyed. 03553_ Critical hit (Burn: +37). 03554_ Hacking Suite destroyed. Map ----- +----------------------------------------------------+ | ??????????????????????????????????????? | | ??????????????????????????????????????? | | ??????????????????????????????????????? | | ??????????????????????????????????????? | | ??????????????????????????????????????? | | ??????????????????????????????????????? | | ??????????????????????????????????????? | | ??????????????????????????????????????? | | ??????????????????????????????????????? | | ??????????????????????????????????????? | | ??????????????????????????????????????? | | ??????????????????????????????????????? | | ??????????????????????????????????????? | | ???????????????????????????#??????????? | | ??????????????????????????? ??????????? | | ?????????????????????????? #?????????? | | ??????????????????????????" #?????????? | | ??????????????????????? #?????????? | | ????????????????????""""""" #?????????? | | ????????????????? #?????????? | | ????????????????? """"""""" #?????????? | | ???????????????#?? #?????????? | | ???????????????#! """"""""" #?????????? | | ???????????????? g g #?????????? | | ???????????????# """"""""" #?????????? | | ???????????????# g s@s #?????????? | | ????????????????######+####+#####?????? | | ???????????????????# #?????? | | ???????????????????# #?????? | | ???????????????????# """ #?????? | | ??????????########## ""T"" #?????? | | ??????????# + "" "" #?????? | | ??????????#"""" # #?????? | | ??????????#"""" # " /[#?????? | | ??????????#"""" # """" /[#?????? | | ??????????#"""" # """ #?????? | | ??????????#"""" # #?????? | | ??????????#"""" # """ ###???? | | ??????????#"""" # """ ""#???? | | ??????????# # """ ""#???? | | ??????##########/### T"#???? | | ?? ^ """" ""#???? | | ?? """" ""#???? | | ?? """" ###???? | | ??? #?????? | | ??? #?????? | | ????######### #####/### #?????? | | ????????????# ## # ###???? | | ????????????# ## # #???? | | ????????????+ ## """" # ! #???? | +----------------------------------------------------+ Best States ------------- Heat Dissipation 45 Energy Generation 18 Energy Capacity 250 Matter Stores 300 Matter Capacity 300 Sight Range 16 Terrain Scan Density 10 Armor Coverage 225 Evasion (%) 40 Targeting Accuracy 5 Recoil Reduction 2 Offensive Hacking 30 Item Schematics ----------------- None Robot Schematics ------------------ None Fabricated ------------ Nothing Repaired ---------- Enh. Autogun | 8% | -8/Materials Alien Tech Used ----------------- None Achievements -------------- None Challenges ------------ None Game ------ Seed RocketCatalystStatue Manual? 0 Play Time 00:29:51 Cumulative 13.7 hours Start 2025.05.06 @ 23:58:29 End 2025.05.07 @ 00:25:10 Sessions 1 Manual Loads 0 Difficulty Rogue Special Mode None Game No. 35 Rogue 34 Adventurer 0 Explorer 1 Win Type - Total 0 Types 0/0/0/0/0/0/0/0/0/0 Lore% 9 Gallery% 21 Achievement% 21 Wizard Run 0 Options --------- Layout 1 ASCII 0 Keyboard 0 Movement Mouse Keybinds 0 Fullscreen 2 Font 24/Smallcaps Map View 50x35 Zoom Use 0% Tactical HUD 1 Map Filters NONE Filters NONE Steam 1 RUN: 28b8c101-a433-4d71-9a3f-3fb0c654e7b2